Cogmind - Beta 16 @@@ ROGUE MODE // 2026.01.21 @ 21:27:22 Player: YoKa Result: Destroyed by Y-45 Defender with Heavy Assault Rifle Performance ------------- Evolutions (0) 0 Regions Visited (2) 400 Robots Destroyed (21) 105 Value Destroyed (569) 569 Prototype IDs (0) 0 Alien Tech Used (0) 0 Bonus (0) 0 TOTAL SCORE: 1074 Bonus ------- None Cogmind --------- Core Integrity 0/250 Matter 240/300 Energy 250/250 System Corruption 0% Temperature Cool (86) Movement Treading (160) Location -10/Mines Parts ------- > --- POWER (1) -------- Ion Engine > --- PROPULSION (2) --- Light Treads > --- UTILITY (2) ------ Medium Storage Unit > --- WEAPON (2) ------- Light Assault Rifle > --- INVENTORY (10) --- Ion Engine Light Treads High-capacity Storage Unit Grenade Launcher Datajack Peak State ------------ > --- POWER ------------ Ion Engine > --- PROPULSION ------- Light Treads Light Treads > --- UTILITY ---------- Medium Storage Unit > --- WEAPON ----------- EM Shotgun EM Shotgun > --- INVENTORY -------- Ion Engine Light Treads High-capacity Storage Unit Light Assault Rifle Grenade Launcher Grenade Launcher Datajack [Rating: 8] Favorites ----------- Power Ion Engine Engine Ion Engine Propulsion Light Treads Treads Light Treads Utility Medium Storage Unit Storage Medium Storage Unit Weapon EM Shotgun Energy Gun EM Shotgun Ballistic Gun Light Assault Rifle Launcher Grenade Launcher Build | -11 -10 -10 ------- Run | Yrd Mat Min Slots Evolved . | . . . Power . | . . . Propulsion . | . . . Utility . | . . . Weapon . | . . . Parts Attached 15 | 6 8 1 Power 4 | 1 3 . Engine 4 | 1 3 . Core . | . . . Reactor . | . . . Propulsion 2 | 2 . . Treads 2 | 2 . . Leg . | . . . Wheel . | . . . Hover . | . . . Flight . | . . . Utility 2 | 1 1 . Device . | . . . Storage 2 | 1 1 . Processor . | . . . Hackware . | . . . Protection . | . . . Artifact . | . . . Weapon 7 | 2 4 1 Energy Gun 2 | . 2 . Energy Cannon . | . . . Ballistic Gun 3 | 2 1 . Ballistic Cannon . | . . . Launcher 2 | . 1 1 Special Weapon . | . . . Impact Weapon . | . . . Slashing Weapon . | . . . Piercing Weapon . | . . . Special Melee Weapon . | . . . Unidentified Prototypes . | . . . Parts Lost 6 | . 2 4 Power 1 | . 1 . Propulsion 1 | . . 1 Utility . | . . . Weapon 4 | . 1 3 Highest Loss Streak 4 | . 1 4 To Critical Strikes . | . . . Average Backups 6 | 2 6 6 Power . | . . 1 Propulsion . | . . 1 Utility . | . . 1 Weapon 3 | 1 3 2 Tool/Special . | . . . Unused Backups 5 | . 1 4 Power 2 | . 1 1 Propulsion 1 | . . 1 Utility 1 | . . 1 Weapon . | . . . Tool/Special 1 | . . 1 Average Slot Usage (%) 82 | . 82 82 Engine 13 | . 13 14 Treads 27 | . 27 28 Storage 14 | . 14 14 Energy Gun 9 | . 8 14 Ballistic Gun 15 | . 17 . Launcher 1 | . . 10 Peak Build Rating 8 | 6 8 8 Average Rating 6 | 4 6 6 On Entrance 4 | . 6 8 Avg Prop Armor Cover (%) . | . . . Naked Turns . | . . . Heaviest Build 21 | 11 21 21 Greatest Support 40 | 40 40 40 Greatest Overweight (x) . | . . . Average Overweight (x) . | . . . Largest Inventory Capacity 10 | 8 10 10 Average Capacity 9 | 7 9 10 Most Carried 9 | 5 9 7 Average Carried 6 | 2 6 6 Final Capacity 10 | 8 10 10 Final Carried 7 | 2 7 5 Class Distribution -------------------- 100% | Mutant Dominant Class ---------------- Mutant | -10/Materials Mutant | -10/Mines Resources | -11 -10 -10 ----------- Run | Yrd Mat Min Matter Collected 612 | 166 446 . Remotely . | . . . Salvage Created 844 | 99 728 17 Parts 43 | 3 40 . Haulers Intercepted 2 | . 2 . Recyclers Shooed . | . . . Parts Field Recycled . | . . . Retrieved Matter . | . . . Parts Self-Destructed . | . . . Prevented . | . . . Parts Restored . | . . . Kills | -11 -10 -10 ------- Run | Yrd Mat Min Combat Hostiles Destroyed 14 | . 14 . Guns 13 | . 13 . AOE 1 | . 1 . Classes Destroyed 7 | 1 5 1 Builder 1 | . 1 . Tunneler 1 | . . 1 Hauler 2 | . 2 . Recycler 1 | 1 . . Operator 1 | . 1 . Watcher 1 | . 1 . Grunt 14 | . 14 . Best Kill Streak 3 | 1 3 1 Combat Bots Only 3 | . 3 . Max Kills in Single Turn 2 | 1 2 1 Gunslinging . | . . . Exploded 1 | . 1 . Melee . | . . . Uniques/NPCs Destroyed . | . . . Combat | -11 -10 -10 -------- Run | Yrd Mat Min Hostile Shots Fired 112 | . 76 36 Missed 26 | . 20 6 Hits 86 | . 56 30 Projectile 86 | . 56 30 Critical Strikes 3 | . 2 1 Damage Taken 1167 | . 686 481 Core 254 | . 106 148 Absorbed by Shields . | . . . Regen/Repaired (Parts) 195 | . 195 . Core Remaining (%) 100 | 100 . . Volleys Fired 88 | 3 76 9 Largest 2 | 2 2 2 Hottest 90 | 40 90 75 Shots Fired 155 | 6 136 13 Gun 144 | 6 130 8 Cannon . | . . . Launcher 11 | . 6 5 Special . | . . . Kinetic 116 | 6 106 4 Thermal . | . . . Explosive 11 | . 6 5 Electromagnetic 28 | . 24 4 Robot Hit Streak 13 | 3 13 9 Robot Miss Streak 4 | 3 4 1 Penetration Max . | . . . Secondary Targets . | . . . Shots Hit Robots 115 | 3 103 9 Core Hits 50 | 2 40 8 Critical Kills . | . . . Critical Parts Destroyed . | . . . Critical Strikes . | . . . Melee Attacks . | . . . Impact . | . . . Slashing . | . . . Piercing . | . . . Sneak Attacks . | . . . Combat Hostiles . | . . . Follow-up Attacks . | . . . Damage Inflicted 1618 | 27 1382 209 Guns 1278 | 27 1164 87 Cannons . | . . . Explosions 323 | . 208 115 Melee . | . . . Ramming 17 | . 10 7 Kinetic 898 | 27 847 24 Thermal . | . . . Explosive 323 | . 208 115 Electromagnetic 380 | . 317 63 Impact . | . . . Slashing . | . . . Piercing . | . . . Highest Corruption . | . . . Average Corruption . | . . . Corruption Purged . | . . . Corruption Blocked . | . . . Overload Shots . | . . . Overflow Damage . | . . . Projectiles . | . . . Explosions . | . . . Melee . | . . . Knockbacks . | . . . Impact . | . . . Kinetic . | . . . Secondary . | . . . Self-Inflicted Damage 35 | . . 35 Shots 1 | . . 1 Rammed 6 | . 5 1 Targets Rammed 6 | . 5 1 Kicked . | . . . Crushed . | . . . Highest Temperature 174 | . 174 88 Average Temperature 37 | . 36 44 Received Heat Transfer 555 | . 420 135 Siege Activations . | . . . Martial Activations . | . . . Shielding Activations . | . . . Robots Disrupted . | . . . Combat Hostiles . | . . . Robots Corrupted . | . . . Combat Hostiles . | . . . Parts Fried 2 | . 2 . Impact Corruptions . | . . . Robots Melted . | . . . Combat Hostiles . | . . . Parts Melted . | . . . Heat Transferred . | . . . Parts Sabotaged . | . . . Parts Stolen . | . . . Parts Stripped . | . . . Power Chain Reactions . | . . . Alert | -11 -10 -10 ------- Run | Yrd Mat Min Maximum Alert Level . | . . . Low Security (%) 100 | 100 100 100 Level 1 . | . . . Level 2 . | . . . Level 3 . | . . . Level 4 . | . . . Level 5 . | . . . High Security . | . . . Max Security . | . . . Peak Influence 91 | 5 91 29 Initial 13 | . . 13 Average 27 | . 31 4 Influence Increases 475 | 5 432 38 Destroy 0b10 Robot/C 280 | . 280 . Destroy 0b10 Robot/NC 35 | 5 25 5 Destroy Leader 86 | . 86 . Successful Hack 5 | . 5 . Destroy Structure 54 | . 21 33 Lose Combat Pursuer 15 | . 15 . Influence Decreases 475 | 5 396 74 Entered New Map 23 | . . 23 Time Decay 404 | 5 376 23 Lost Part 48 | . 20 28 Squads Dispatched 6 | . 6 . Investigation 5 | . 5 . Extermination . | . . . Reinforcement 1 | . 1 . Assault . | . . . Garrison . | . . . Intercept . | . . . Searches Triggered . | . . . Construction Impeded . | . . . Haulers Reinforced . | . . . Active Scanning Responses . | . . . Cargo Convoy Interrupts . | . . . Stealth | -11 -10 -10 --------- Run | Yrd Mat Min Distress Signals 2 | . 2 . Communications Jammed . | . . . Distress Signals . | . . . Times Spotted 26 | . 24 2 Peak Tracking Total 3 | . 3 2 Tactical Retreats 1 | . 1 . Traps | -11 -10 -10 ------- Run | Yrd Mat Min Traps Triggered 3 | . 3 . Indirectly . | . . . Trap Hack Attempts . | . . . Triggered . | . . . Disarmed . | . . . Reprogrammed . | . . . Reused . | . . . Traps Extracted . | . . . Installed . | . . . Triggered . | . . . Machines | -11 -10 -10 ---------- Run | Yrd Mat Min Machines Disabled 2 | . . 2 Max in Single Turn 1 | . . 1 Machines Repaired . | . . . Machines Dismantled . | . . . Machines Sabotaged . | . . . Overloaded Fab Kills . | . . . Hacking | -11 -10 -10 --------- Run | Yrd Mat Min Machines Accessed 6 | . 6 . Terminals 4 | . 4 . Fabricators . | . . . Repair Stations 1 | . 1 . Recycling Units 1 | . 1 . Scanalyzers . | . . . Garrison Access . | . . . Total Hacks 19 | . 19 . Successful 6 | . 6 . Failed 13 | . 13 . Catastrophic 3 | . 3 . Database Lockouts . | . . . Manual 11 | . 11 . Terminals 11 | . 11 . Fabricators . | . . . Repair Stations 6 | . 6 . Recycling Units 2 | . 2 . Scanalyzers . | . . . Garrison Access . | . . . Terminal Hacks . | . . . Fabricator Hacks . | . . . Repair Station Hacks 4 | . 4 . Scan Component 2 | . 2 . Repair 2 | . 2 . Recycling Unit Hacks 1 | . 1 . Report Inventory 1 | . 1 . Scanalyzer . | . . . Garrison Access Hacks . | . . . Unauthorized Hacks 1 | . 1 . Terminals 1 | . 1 . Operators 1 | . 1 . Fabricators . | . . . Repair Stations . | . . . Recycling Units . | . . . Scanalyzers . | . . . Garrison Access . | . . . Data Cores Recovered . | . . . Used . | . . . Hacking Detections 6 | . 6 . Full Trace Events 3 | . 3 . Feedback Events . | . . . Feedback Blocked . | . . . Robot Schematics Acquired . | . . . Robots Built . | . . . Authchips . | . . . Time . | . . . Total Robot Build Rating . | . . . Part Schematics Acquired . | . . . Parts Built . | . . . Authchips . | . . . Time . | . . . Total Part Build Rating . | . . . Part Studies Acquired . | . . . Parts Repaired 2 | . 2 . Time 52 | . 52 . Parts Recycled . | . . . Recycled Matter . | . . . Retrieved Matter . | . . . Retrieved Components . | . . . Parts Scanalyzed . | . . . Part Schematics Acquired . | . . . Parts Damaged . | . . . Bothacking | -11 -10 -10 ------------ Run | Yrd Mat Min Used RIF Installer . | . . . Robots Hacked . | . . . Non-combat . | . . . Combat . | . . . Robot Hacks Applied . | . . . Relay Couplers Released . | . . . Fabnet Peak Effective % . | . . . Robots Rewired . | . . . Allies Hacked . | . . . Hacks Repelled . | . . . Allies | -11 -10 -10 -------- Run | Yrd Mat Min Total Allies . | . . . Largest Group . | . . . Highest-Rated Group . | . . . Highest-Rated Ally . | . . . Total Orders . | . . . Ally Attacks . | . . . Total Damage . | . . . Kills . | . . . Allies Corrupted . | . . . Allies Melted . | . . . Intel | -11 -10 -10 ------- Run | Yrd Mat Min Active Infowar (turns) . | . . . Robot Analysis Total . | . . . Derelict Logs Recovered . | . . . Drone Launches . | . . . Drone Recoveries . | . . . Exploration | -11 -10 -10 ------------- Run | Yrd Mat Min Turns Passed 1872 | 62 1662 148 Spaces Moved 928 | 34 819 75 Core 12 | 12 . . Treads 916 | 22 819 75 Legs . | . . . Wheels . | . . . Hover . | . . . Flight . | . . . Fastest Speed 50 | 50 160 160 Average Speed 158 | 121 160 160 Slowest Speed 160 | 160 160 160 Overloaded Moves . | . . . Propulsion Burnouts . | . . . Robots Hopped . | . . . Potential Cave-ins . | . . . Cave-ins Triggered . | . . . Exploration Rate (%) 41 | 4 95 24 Regions Visited 2 Branch Regions 1 Pre-discovered Areas . | . . . Known Exits Taken . | . . . Unknown Exits Taken 2 | 1 1 . Scrap Searched . | . . . Spaces Dug . | . . . Terrain Destroyed 66 | . 32 34 Melee . | . . . Projectile . | . . . AOE 66 | . 32 34 Terrain Rammed . | . . . Walls Destroyed . | . . . Machines Disabled . | . . . Actions | -11 -10 -10 --------- Run | Yrd Mat Min Total 1183 | 50 1043 90 Wait 117 | . 115 2 Move 926 | 33 818 75 Hop . | . . . Pick Up 22 | 8 14 . Fast Attach . | . . . Attach 12 | 6 4 2 Detach . | . . . Swap 7 | . 6 1 Drop 5 | . 5 . Fire 88 | 3 76 9 Melee . | . . . Ram . | . . . Kick . | . . . Crush 6 | . 5 1 Escape Stasis . | . . . Rewire . | . . . Trap . | . . . Miscellaneous . | . . . Route ------- -11/Scrapyard -10/Materials (discovered 5 exits: [*Mat x3] / [*Min] / [*Sub]) -10/Mines History --------- Turn | Location | Event 8 | -11/Scrapyard | Discovered new exit (range 16) 63 | -11/Scrapyard | Entered Materials 301 | -10/Materials | Build established: Mutant 363 | -10/Materials | Discovered new exit (range 6) 875 | -10/Materials | Repaired Lgt. Treads 903 | -10/Materials | Repaired Lgt. Treads 1172 | -10/Materials | Discovered new exit (range 14) 1346 | -10/Materials | Discovered new exit (range 7) 1483 | -10/Materials | Discovered new exit (range 14) 1559 | -10/Materials | Discovered new exit (range 13) 1725 | -10/Materials | Entered Mines 1853 | -10/Mines | Core integrity fell below 50% 1865 | -10/Mines | Core integrity fell below 20% 1873 | -10/Mines | Destroyed by Y-45 Defender with Heavy Assault Rifle Last Messages --------------- Testing... Operator tracking enabled and active. Connecting with Terminal... LOCATION=UNKNOWN GOAL=ESCAPE T-07 Excavator is excavating. Slammed into T-07 Excavator. Machine disabled. EM Shotgun destroyed. T-07 Excavator destroyed. Critical hit (Burn: +37). Machine disabled. Grenade Launcher destroyed. U-05 Engineer lays Concrete. U-05 Engineer builds a Wall. U-05 Engineer lays Concrete. EM Shotgun destroyed. U-05 Engineer lays Concrete. U-05 Engineer builds a Wall. Lgt. Treads destroyed. Map ----- +----------------------------------------------------+ | ?????# ###### ##??????????????????????? | | ??????# ##?????????????????????? | | ???????# #?????????????????????? | | ???????# ####### ##????????????????????? | | ???????####?????## ##???????????????????? | | ?????????######### #???????????????????? | | ?????????# ##??????????????????? | | ?????????# ######## #??????????????????? | | ?????????# #??????# #??????????????? | | ???###???# #??????## ######??????????????? | | ??## ##?# #???????####???????????????????? | | ??# #?# #??????????? ??????????????????? | | ??# ?# #?????????? #?????????????????? | | ???# ?# #????????## ### ??????????????? | | ???# #?# #???????? # ?????????????? | | ??## ### ##??????? ?????????????? | | ??# #??##### ??????????????? | | ?# #??# ! % #???????????????? | | ?# #### #??"" [ #???????????????? | | ?# #### #?? #???????????????? | | ?# #??# #???????????????? | | ?## ##### #### # #???????????????? | | ??###????# ## u ##??????????????? | | ?????????# ## ##?????????????? | | ?????????# ## Y #Y #?????????????? | | ?????????# ## @ #????????????? | | ?????????# # #????????????? | | ???????### # #???????????? | | ??????## t ##### ?????????? | | ??????# #????# ?????????? | | ??????# #?????# ####??????????? | | ??????## #?????? ##?????????????? | | ???????## ##??????? #??????????????? | | ????????## #????????? ##??????????????? | | ?????????# #??????????#???????????????? | | ????????? ##??????????????????????????? | | ???????? ##???????????????????????????? | | ???????? #????????????????????????????? | | ????????## ##????????????????????????????? | | ?????????## #?????????????????????????????? | | ??????????# #?????????????????????????????? | | ??????????# #?????????????????????????????? | | ??????????? #?????????????????????????????? | | ??????????? #?????????????????????????????? | | ??????????? ??????????????????????????????? | | ??????????? ??????????????????????????????? | | ???????????#??????????????????????????????? | | ??????????????????????????????????????????? | | ??????????????????????????????????????????? | | ??????????????????????????????????????????? | +----------------------------------------------------+ Best States ------------- Heat Dissipation 25 Energy Generation 10 Energy Capacity 250 Matter Stores 300 Matter Capacity 300 Sight Range 16 Terrain Scan Density 10 Evasion (%) 50 Recoil Reduction 2 Item Schematics ----------------- None Robot Schematics ------------------ None Fabricated ------------ Nothing Repaired ---------- Lgt. Treads | 28% | -10/Materials Lgt. Treads | 32% | -10/Materials Studied --------- None Alien Tech Used ----------------- None Achievements -------------- None Challenges ------------ None Game ------ Seed SupersonicUtilityImmobilizer Manual? 0 Play Time 00:14:30 Cumulative 11.5 hours Start 2026.01.21 @ 21:01:05 End 2026.01.21 @ 21:27:22 Sessions 1 Manual Loads 0 Difficulty Rogue Special Mode None Game No. 20 Rogue 20 Adventurer 0 Explorer 0 Win Type - Total 0 Types 0/0/0/0/0/0/0/0/0/0 Lore% 12 Gallery% 16 Achievement% 16 Wizard Run 0 Options --------- Layout 2 ASCII 0 Keyboard 0 Movement Mouse Keybinds 0 Fullscreen 1 Font 24/Smallcaps Map View 50x44 Zoom Use 0% Tactical HUD 0 Map Filters NONE Filters NONE Steam 1 RUN: 95ed5782-d8f5-4c53-be1a-893c64d1c3b4